fUST/lending_fUST_20241201
["ID","MTS","AMOUNT","RATE_DAILY","PERIOD"]
[343904078,1733019044180,-505.45055669,0.00024931,3]
[343904079,1733019044190,-502.43065789,0.00024931,3]
[343904080,1733019044200,-509.69299062,0.00024931,3]
[343904081,1733019044210,-508.98552208,0.00024931,3]
[343904082,1733019044220,-500.0,0.00024931,2]
[343904083,1733019044230,-501.87096691,0.00024931,3]
[343904084,1733019044240,-500.0,0.00024931,3]
[343904085,1733019044250,-503.3340098,0.00024931,3]
[343904086,1733019044261,-559.08953796,0.00024931,3]
[343904087,1733019044271,-500.0,0.00024931,3]
[343904088,1733019044282,-503.77263799,0.00024931,3]
[343904089,1733019044292,-394.35461265,0.00024931,3]
[343904090,1733019044302,-158.16044556,0.00024931,3]
[343904091,1733019044311,-500.0,0.00024931,3]
[343904093,1733019044321,-500.0,0.00024931,3]
[343904095,1733019044331,-502.50887296,0.00024931,3]
[343904097,1733019044341,-505.58095975,0.00024931,3]
[343904098,1733019044350,-500.0,0.00024931,3]
[343904099,1733019044360,-500.0,0.00024931,3]
[343904100,1733019044370,-506.50053688,0.00024931,3]
[343904102,1733019044379,-500.0,0.00024931,3]
[343904104,1733019044388,-501.28225716,0.00024931,3]
[343904106,1733019044414,-500.0,0.00024931,3]
[343904108,1733019044426,-500.0,0.00024931,3]
[343904110,1733019044436,-507.36265426,0.00024931,3]
[343904112,1733019044446,-829.63,0.00024931,3]
[343904114,1733019044457,-500.0,0.00024931,3]
[343904115,1733019044468,-507.67617738,0.00024931,3]
[343904116,1733019044478,-501.29614116,0.00024931,3]
[343904117,1733019044489,-503.86266971,0.00024931,3]
[343904118,1733019044499,-543.99896345,0.00024931,3]
[343904119,1733019044509,-500.0,0.00024931,3]
[343904120,1733019044519,-500.0,0.00024931,3]
[343904121,1733019044529,-503.61027085,0.00024931,3]
[343904122,1733019044540,-500.0,0.00024931,3]
[343904123,1733019044550,-503.04582099,0.00024931,3]
[343904124,1733019044560,-500.0,0.00024931,3]
[343904125,1733019044571,-500.0,0.00024931,3]
[343904126,1733019044582,-544.49,0.00024931,3]
[343904127,1733019044592,-222.33859838,0.00024931,3]
[343904128,1733019044603,-500.0,0.00024931,3]
[343904129,1733019044614,-506.98859279,0.00024931,3]
[343904130,1733019044624,-500.0,0.00024931,3]
[343904131,1733019044635,-500.0,0.00024931,3]
[343904132,1733019044646,-641.96,0.00024931,3]
[343904133,1733019044656,-500.0,0.00024931,3]
[343904134,1733019044667,-500.0,0.00024931,3]
[343904135,1733019044677,-500.0,0.00024931,3]
[343904136,1733019044689,-502.28818074,0.00024931,3]
[343904137,1733019044699,-500.0,0.00024931,3]
[343904138,1733019044709,-500.0,0.00024931,3]
[343904139,1733019044719,-500.0,0.00024931,3]
[343904140,1733019044729,-500.0,0.00024931,3]
[343904141,1733019044739,-500.0,0.00024931,3]
[343904142,1733019044749,-500.0,0.00024931,3]
[343904143,1733019044759,-500.0,0.00024931,3]
[343904144,1733019044769,-500.0,0.00024931,3]
[343904145,1733019044784,-502.05245836,0.00024931,3]
[343904146,1733019044795,-500.0,0.00024931,3]
[343904147,1733019044806,-506.15077031,0.00024931,2]
[343904148,1733019044819,-500.0,0.00024931,3]
[343904149,1733019044831,-500.0,0.00024931,3]
[343904150,1733019044842,-500.0,0.00024931,3]
[343904151,1733019044855,-466.33106324,0.00024931,3]
[343904152,1733019044872,-506.56063264,0.00024931,3]
[343904153,1733019044882,-500.0,0.00024931,3]
[343904154,1733019044894,-500.0,0.00024931,3]
[343904155,1733019044924,-588.74831494,0.00024931,3]
[343904156,1733019044935,-500.0,0.00024931,3]
[343904157,1733019044946,-599.0,0.00024931,3]
[343904158,1733019044957,-500.0,0.00024931,3]
[343904159,1733019044967,-500.0,0.00024931,3]
[343904160,1733019044978,-500.0,0.00024931,3]
[343904161,1733019044994,-505.55532565,0.00024931,3]
[343904162,1733019045005,-500.0,0.00024931,3]
[343904163,1733019045015,-500.0,0.00024931,3]
[343904164,1733019045025,-500.0,0.00024931,3]
[343904165,1733019045035,-503.70527535,0.00024931,3]
[343904166,1733019045046,-500.0,0.00024931,3]
[343904167,1733019045057,-664.83,0.00024931,3]
[343904168,1733019045069,-500.0,0.00024931,3]
[343904169,1733019045080,-180.31161249,0.00024931,3]
[343904170,1733019045090,-500.0,0.00024931,3]
[343904171,1733019045101,-500.0,0.00024931,3]
[343904172,1733019045111,-500.0,0.00024931,3]
[343904173,1733019045122,-500.0,0.00024931,3]
[343904174,1733019045132,-501.80912427,0.00024931,2]
[343904175,1733019045143,-500.0,0.00024931,3]
[343904176,1733019045154,-451.19108874,0.00024931,3]
[343904177,1733019045165,-500.0,0.00024931,3]
[343904178,1733019045176,-951.57,0.00024931,3]
[343904179,1733019045187,-503.64836381,0.00024931,3]
[343904180,1733019045199,-512.22939423,0.00024931,3]
[343904181,1733019045209,-505.15326563,0.00024931,3]
[343904182,1733019045219,-716.35,0.00024931,3]
[343904183,1733019045230,-507.66306884,0.00024931,3]
[343904184,1733019045240,-500.0,0.00024931,3]
[343904185,1733019045250,-503.1936834,0.00024931,3]
[343904186,1733019045262,-500.0,0.00024931,3]
[343904187,1733019045273,-501.76989364,0.00024931,3]
[343904188,1733019045284,-500.0,0.00024931,3]
[343904189,1733019045294,-500.0,0.00024931,3]
[343904190,1733019045305,-500.0,0.00024931,3]
[343904191,1733019045317,-316.15891873,0.00024931,3]
[343904192,1733019045329,-171.34001208,0.00024931,3]
[343904193,1733019045340,-500.0,0.00024931,3]
[343904194,1733019045351,-502.55952556,0.00024931,3]
[343904195,1733019045363,-917.94,0.00024931,3]
[343904196,1733019045374,-500.0,0.00024931,3]
[343904197,1733019045385,-502.72284586,0.00024931,3]
[343904198,1733019045395,-482.02890204,0.00024931,3]
[343904199,1733019045426,-500.0,0.00024931,3]
[343904200,1733019045437,-500.0,0.00024931,3]
[343904201,1733019045447,-500.0,0.00024931,3]
[343904202,1733019045458,-500.0,0.00024931,3]
[343904203,1733019045469,-500.0,0.00024931,3]
[343904204,1733019045479,-503.68703518,0.00024931,3]
[343904205,1733019045489,-501.67563161,0.00024931,3]
[343904206,1733019045499,-504.39422114,0.00024931,3]
[343904207,1733019045509,-500.0,0.00024931,3]
[343904208,1733019045519,-500.0,0.00024931,3]
[343904209,1733019045529,-500.0,0.00024931,3]
[343904210,1733019045540,-500.0,0.00024931,3]
[343904211,1733019045551,-500.0,0.00024931,3]
[343904212,1733019045561,-500.0,0.00024931,3]
[343904213,1733019045571,-500.0,0.00024931,3]
[343904214,1733019045582,-500.0,0.00024931,3]
[343904215,1733019045592,-175.11520538,0.00024931,3]
[343904216,1733019045602,-500.0,0.00024931,3]
[343904217,1733019045612,-1377.98,0.00024931,3]
[343904218,1733019045622,-1000.0,0.00024931,2]
[343904219,1733019045632,-500.0,0.00024931,3]
[343904220,1733019045642,-500.0,0.00024931,3]
[343904221,1733019045652,-500.0,0.00024931,2]
[343904222,1733019045662,-500.0,0.00024931,3]
[343904223,1733019045672,-500.0,0.00024931,3]
[343904224,1733019045681,-1292.72,0.00024931,3]
[343904225,1733019045692,-500.0,0.00024931,3]
[343904226,1733019045702,-500.0,0.00024931,3]
[343904227,1733019045713,-512.06200752,0.00024931,3]
[343904228,1733019045724,-500.0,0.00024931,3]
[343904229,1733019045734,-500.0,0.00024931,3]
[343904230,1733019045744,-1313.91,0.00024931,3]
[343904231,1733019045755,-500.0,0.00024931,3]
[343904232,1733019045765,-500.0,0.00024931,3]
[343904233,1733019045777,-500.0,0.00024931,3]
[343904234,1733019045787,-500.0,0.00024931,3]
[343904235,1733019045797,-500.0,0.00024931,3]
[343904236,1733019045808,-1140.13,0.00024931,3]
[343904237,1733019045820,-500.0,0.00024931,3]
[343904238,1733019045830,-502.12686315,0.00024931,3]
[343904239,1733019045840,-519.77224173,0.00024931,3]
[343904240,1733019045850,-500.0,0.00024931,3]
[343904241,1733019045860,-500.61610407,0.00024973,2]
[343904242,1733019045870,-500.49187378,0.00024973,2]
[343904243,1733019045879,-500.51535839,0.00024973,2]
[343904244,1733019045889,-500.30580391,0.00024973,2]
[343904245,1733019045906,-502.73552203,0.00024973,2]
[343904246,1733019045922,-500.0,0.00024973,2]
[343904247,1733019045932,-151.12032629,0.00024973,2]
[343904248,1733019045941,-500.0,0.00024973,2]
[343904249,1733019045951,-160.25293066,0.00024973,2]
[343904250,1733019045960,-516.07790882,0.00024973,2]
[343904251,1733019045969,-556.60965506,0.00024973,2]
[343904252,1733019045979,-500.0,0.00024973,2]
[343904253,1733019045989,-500.58436627,0.00024973,2]
[343904254,1733019045999,-501.20441396,0.00024973,2]
[343904255,1733019046009,-500.42991863,0.00024973,2]
[343904256,1733019046019,-300.0,0.00025,2]
[343904257,1733019046029,-277.599999,0.00025,2]
[343904258,1733019046040,-1620.9,0.00025,30]
[343904259,1733019046051,-302.69733596,0.00025,2]
[343904260,1733019046062,-501.03635572,0.0002501,2]
[343904263,1733019046072,-186.12,0.00025047,9]
[343904264,1733019046083,-154.416648,0.000252,18]
[343904265,1733019046095,-503.17393569,0.00025205,3]
[343904266,1733019046107,-500.0,0.00025205,3]
[343904267,1733019046118,-500.0,0.00025205,3]
[343904268,1733019046129,-500.0,0.00025205,3]
[343904269,1733019046141,-500.0,0.00025205,3]
[343904270,1733019046152,-536.72635521,0.00025205,3]
[343904271,1733019046243,-200.0,0.00025205,3]
[343904272,1733019046254,-500.0,0.00025205,3]
[343904273,1733019046265,-500.0,0.00025205,3]
[343904274,1733019046275,-500.0,0.00025205,3]
[343904275,1733019046286,-503.73237195,0.00025205,3]
[343904276,1733019046297,-500.0,0.00025205,3]
[343904277,1733019046308,-500.0,0.00025205,3]
[343904278,1733019046319,-500.0,0.00025205,3]
[343904279,1733019046329,-511.56259699,0.00025205,3]
[343904280,1733019046339,-539.88978058,0.00025205,2]
[343904281,1733019046352,-508.68212851,0.00025205,3]
[343904282,1733019046362,-500.0,0.00025205,3]
[343904283,1733019046373,-500.0,0.00025205,3]
[343904286,1733019046384,-500.0,0.00025205,3]
[343904288,1733019046395,-500.0,0.00025205,3]
[343904289,1733019046405,-501.17272075,0.00025205,3]
[343904290,1733019046417,-518.96405474,0.00025205,3]
[343904291,1733019046428,-500.0,0.00025205,3]
[343904292,1733019046438,-500.0,0.00025205,3]
[343904293,1733019046448,-829.63,0.00025205,3]
[343904294,1733019046458,-503.68635376,0.00025205,3]
[343904295,1733019046468,-500.0,0.00025205,3]
[343904296,1733019046479,-500.0,0.00025205,3]
[343904297,1733019046489,-500.0,0.00025205,3]
[343904298,1733019046499,-500.0,0.00025205,3]
[343904299,1733019046510,-500.0,0.00025205,3]
[343904300,1733019046521,-544.49,0.00025205,3]
[343904301,1733019046531,-500.0,0.00025205,3]
[343904302,1733019046541,-475.94352366,0.00025205,3]
[343904303,1733019046552,-500.0,0.00025205,3]
[343904304,1733019046562,-641.96,0.00025205,3]
[343904305,1733019046573,-500.0,0.00025205,3]
[343904306,1733019046583,-500.0,0.00025205,3]
[343904307,1733019046593,-500.0,0.00025205,3]
[343904308,1733019046603,-504.57992307,0.00025205,3]
[343904309,1733019046613,-607.41806872,0.00025205,3]
[343904310,1733019046623,-500.0,0.00025205,3]
[343904311,1733019046632,-507.07354886,0.00025205,3]
[343904312,1733019046642,-506.95723704,0.00025205,3]
[343904313,1733019046652,-500.0,0.00025205,3]
[343904314,1733019046662,-505.88616946,0.00025205,3]
[343904315,1733019046673,-500.0,0.00025205,3]
[343904317,1733019046683,-500.0,0.00025205,3]
[343904318,1733019046693,-500.0,0.00025205,3]
[343904319,1733019046704,-510.41383853,0.00025205,3]
[343904320,1733019046714,-500.0,0.00025205,3]
[343904321,1733019046725,-500.0,0.00025205,3]
[343904322,1733019046736,-500.0,0.00025205,3]
[343904323,1733019046746,-500.0,0.00025205,3]
[343904324,1733019046756,-599.0,0.00025205,3]
[343904325,1733019046766,-500.0,0.00025205,3]
[343904326,1733019046780,-510.49734142,0.00025205,3]
[343904327,1733019046790,-500.0,0.00025205,3]
[343904328,1733019046800,-500.0,0.00025205,3]
[343904329,1733019046810,-500.0,0.00025205,3]
[343904330,1733019046822,-620.97171301,0.00025205,3]
[343904331,1733019046832,-500.0,0.00025205,3]
[343904332,1733019046842,-664.83,0.00025205,3]
[343904333,1733019046852,-500.0,0.00025205,3]
[343904334,1733019046862,-500.0,0.00025205,3]
[343904335,1733019046872,-500.0,0.00025205,3]
[343904336,1733019046882,-500.0,0.00025205,3]
[343904337,1733019046892,-509.13845205,0.00025205,3]
[343904338,1733019046901,-500.0,0.00025205,3]
[343904339,1733019046911,-951.57,0.00025205,3]
[343904340,1733019046920,-716.35,0.00025205,3]
[343904341,1733019046930,-518.83268352,0.00025205,3]
[343904342,1733019046939,-500.0,0.00025205,3]
[343904343,1733019046949,-500.0,0.00025205,3]
[343904344,1733019046958,-505.35857486,0.00025205,3]
[343904345,1733019046968,-500.0,0.00025205,3]
[343904346,1733019046978,-500.0,0.00025205,3]
[343904347,1733019046988,-917.94,0.00025205,3]
[343904348,1733019046998,-500.0,0.00025205,3]
[343904349,1733019047007,-500.0,0.00025205,3]
[343904350,1733019047016,-500.0,0.00025205,3]
[343904351,1733019047026,-506.17644165,0.00025205,3]
[343904352,1733019047035,-500.0,0.00025205,3]
[343904353,1733019047044,-504.24739827,0.00025205,3]
[343904354,1733019047053,-500.0,0.00025205,3]
[343904355,1733019047063,-500.0,0.00025205,3]
[343904356,1733019047072,-500.0,0.00025205,3]
[343904357,1733019047081,-500.0,0.00025205,3]
[343904358,1733019047091,-500.0,0.00025205,3]
[343904359,1733019047100,-500.0,0.00025205,3]
[343904360,1733019047110,-500.0,0.00025205,3]
[343904361,1733019047118,-500.0,0.00025205,3]
[343904362,1733019047128,-1377.98,0.00025205,3]
[343904363,1733019047136,-1000.0,0.00025205,2]
[343904364,1733019047145,-500.0,0.00025205,3]
[343904365,1733019047154,-500.0,0.00025205,3]
[343904366,1733019047164,-500.0,0.00025205,2]
[343904367,1733019047175,-500.0,0.00025205,3]
[343904368,1733019047186,-517.11628451,0.00025205,3]
[343904369,1733019047195,-1292.72,0.00025205,3]
[343904370,1733019047204,-500.0,0.00025205,3]
[343904371,1733019047213,-500.0,0.00025205,3]
[343904372,1733019047221,-509.86050862,0.00025205,3]
[343904373,1733019047229,-442.33043133,0.00025205,3]
[343904374,1733019047238,-1313.91,0.00025205,3]
[343904375,1733019047247,-500.0,0.00025205,3]
[343904376,1733019047256,-500.0,0.00025205,3]
[343904377,1733019047265,-500.0,0.00025205,3]
[343904378,1733019047277,-500.0,0.00025205,3]
[343904379,1733019047289,-500.0,0.00025205,3]
[343904380,1733019047299,-1140.13,0.00025205,3]
[343904381,1733019047308,-500.0,0.00025205,3]
[343904382,1733019047317,-500.0,0.00025205,3]
[343904383,1733019047324,-160.14802827,0.0002525,2]
[343904384,1733019047332,-500.47199785,0.00025284,2]
[343904385,1733019047341,-500.0,0.00025479,3]
[343904386,1733019047350,-500.0,0.00025479,3]
[343904387,1733019047361,-500.0,0.00025479,3]
[343904388,1733019047371,-222.0388154,0.00025479,3]
[343904389,1733019047381,-202.17547536,0.00025479,3]
[343904390,1733019047390,-565.07465467,0.00025479,3]
[343904391,1733019047400,-500.0,0.00025479,3]
[343904392,1733019047410,-500.0,0.00025479,3]
[343904393,1733019047419,-502.33881125,0.00025479,3]
[343904394,1733019047430,-344.54668487,0.00025479,3]
[343904395,1733019047440,-500.0,0.00025479,3]
[343904396,1733019047450,-500.0,0.00025479,3]
[343904397,1733019047461,-500.0,0.00025479,3]
[343904398,1733019047471,-314.48583825,0.00025479,3]
[343904399,1733019047482,-500.0,0.00025479,3]
[343904400,1733019047492,-500.0,0.00025479,3]
[343904401,1733019047502,-374.61219569,0.00025479,3]
[343904402,1733019047512,-829.63,0.00025479,3]
[343904403,1733019047523,-500.0,0.00025479,3]
[343904404,1733019047535,-500.0,0.00025479,3]
[343904405,1733019047546,-500.0,0.00025479,3]
[343904406,1733019047556,-500.0,0.00025479,3]
[343904407,1733019047567,-500.0,0.00025479,3]
[343904408,1733019047577,-544.49,0.00025479,3]
[343904409,1733019047587,-500.0,0.00025479,3]
[343904410,1733019047598,-500.0,0.00025479,3]
[343904411,1733019047608,-641.96,0.00025479,3]
[343904412,1733019047619,-500.0,0.00025479,3]
[343904413,1733019047629,-500.0,0.00025479,3]
[343904414,1733019047640,-500.0,0.00025479,3]
[343904415,1733019047650,-500.0,0.00025479,3]
[343904416,1733019047660,-500.0,0.00025479,3]
[343904417,1733019047671,-500.0,0.00025479,3]
[343904418,1733019047682,-286.55918438,0.00025479,3]
[343904419,1733019047693,-500.0,0.00025479,3]
[343904420,1733019047704,-182.18816235,0.00025479,3]
[343904421,1733019047715,-500.0,0.00025479,3]
[343904422,1733019047727,-500.0,0.00025479,3]
[343904423,1733019047740,-500.0,0.00025479,3]
[343904424,1733019047750,-599.0,0.00025479,3]
[343904425,1733019047761,-500.0,0.00025479,3]
[343904426,1733019047771,-505.97131274,0.00025479,3]
[343904427,1733019047787,-585.07032606,0.00025479,3]
[343904428,1733019047797,-500.0,0.00025479,3]
[343904429,1733019047808,-500.0,0.00025479,3]
[343904430,1733019047818,-664.83,0.00025479,3]
[343904431,1733019047831,-500.0,0.00025479,3]
[343904432,1733019047841,-500.0,0.00025479,3]
[343904433,1733019047851,-500.0,0.00025479,3]
[343904434,1733019047862,-500.0,0.00025479,3]
[343904435,1733019047873,-500.0,0.00025479,3]
[343904436,1733019047883,-951.57,0.00025479,3]
[343904437,1733019047894,-716.35,0.00025479,3]
[343904438,1733019047904,-507.76395526,0.00025479,3]
[343904439,1733019047915,-520.39370508,0.00025479,3]
[343904440,1733019047926,-500.0,0.00025479,3]
[343904441,1733019047936,-500.0,0.00025479,3]
[343904442,1733019047947,-917.94,0.00025479,3]
[343904443,1733019047958,-500.0,0.00025479,3]
[343904444,1733019047969,-500.0,0.00025479,3]
[343904445,1733019047979,-500.0,0.00025479,3]
[343904446,1733019047989,-500.0,0.00025479,3]
[343904447,1733019047998,-321.21060274,0.00025479,3]
[343904448,1733019048009,-500.0,0.00025479,3]
[343904449,1733019048018,-500.0,0.00025479,3]
[343904450,1733019048028,-500.0,0.00025479,3]
[343904451,1733019048038,-500.0,0.00025479,3]
[343904452,1733019048047,-500.0,0.00025479,3]
[343904453,1733019048056,-500.0,0.00025479,3]
[343904454,1733019048066,-500.0,0.00025479,3]
[343904455,1733019048076,-1377.98,0.00025479,3]
[343904456,1733019048086,-1000.0,0.00025479,2]
[343904457,1733019048096,-396.69529409,0.00025479,3]
[343904458,1733019048105,-500.0,0.00025479,3]
[343904459,1733019048116,-500.0,0.00025479,2]
[343904460,1733019048126,-500.0,0.00025479,3]
[343904461,1733019048136,-1292.72,0.00025479,3]
[343904462,1733019048221,-537.6054012,0.00025479,3]
[343904463,1733019048232,-500.0,0.00025479,3]
[343904464,1733019048241,-1313.91,0.00025479,3]
[343904465,1733019048251,-581.30111657,0.00025479,3]
[343904466,1733019048260,-500.0,0.00025479,3]
[343904467,1733019048270,-500.0,0.00025479,3]
[343904468,1733019048279,-500.0,0.00025479,3]
[343904469,1733019048289,-272.69335588,0.00025479,3]
[343904470,1733019048299,-1140.13,0.00025479,3]
[343904471,1733019048309,-500.0,0.00025479,3]
[343904472,1733019048319,-500.0,0.00025479,3]
[343904473,1733019048329,-300.0,0.000255,2]
[343904474,1733019048339,-500.78297066,0.00025521,2]
[343904475,1733019048348,-1001.60256733,0.00025521,2]
[343904476,1733019048358,-500.59821909,0.00025521,2]
[343904477,1733019048368,-500.0,0.00025753,3]
[343904478,1733019048377,-500.0,0.00025753,3]
[343904479,1733019048387,-528.23791307,0.00025753,3]
[343904480,1733019048396,-500.0,0.00025753,3]
[343904481,1733019048413,-500.0,0.00025753,3]
[343904482,1733019048423,-500.0,0.00025753,3]
[343904483,1733019048433,-500.0,0.00025753,3]
[343904484,1733019048443,-500.0,0.00025753,3]
[343904485,1733019048453,-500.0,0.00025753,3]
[343904486,1733019048464,-500.0,0.00025753,3]
[343904487,1733019048474,-829.63,0.00025753,3]
[343904488,1733019048485,-413.70633395,0.00025753,3]
[343904489,1733019048501,-500.0,0.00025753,3]
[343904490,1733019048511,-607.08337607,0.00025753,3]
[343904491,1733019048522,-500.0,0.00025753,3]
[343904492,1733019048533,-500.0,0.00025753,3]
[343904493,1733019048544,-544.49,0.00025753,3]
[343904494,1733019048555,-527.38066613,0.00025753,3]
[343904495,1733019048566,-210.19457609,0.00025753,3]
[343904496,1733019048577,-641.96,0.00025753,3]
[343904497,1733019048588,-500.0,0.00025753,3]
[343904498,1733019048599,-500.0,0.00025753,3]
[343904499,1733019048611,-528.60137173,0.00025753,3]
[343904500,1733019048622,-500.0,0.00025753,3]
[343904501,1733019048633,-232.45285313,0.00025753,3]
[343904502,1733019048644,-500.0,0.00025753,3]
[343904503,1733019048655,-500.0,0.00025753,3]
[343904504,1733019048666,-500.0,0.00025753,3]
[343904505,1733019048677,-500.0,0.00025753,3]
[343904506,1733019048688,-505.06409531,0.00025753,3]
[343904507,1733019048700,-599.0,0.00025753,3]
[343904508,1733019048711,-500.0,0.00025753,3]
[343904509,1733019048722,-508.90142795,0.00025753,3]
[343904510,1733019048732,-500.0,0.00025753,3]
[343904511,1733019048743,-664.83,0.00025753,3]
[343904512,1733019048757,-500.0,0.00025753,3]
[343904513,1733019048767,-500.0,0.00025753,3]
[343904514,1733019048784,-500.0,0.00025753,3]
[343904515,1733019048796,-500.0,0.00025753,3]
[343904516,1733019048807,-500.0,0.00025753,3]
[343904517,1733019048822,-951.57,0.00025753,3]
[343904518,1733019048833,-716.35,0.00025753,3]
[343904519,1733019048844,-500.0,0.00025753,3]
[343904520,1733019048854,-500.0,0.00025753,3]
[343904521,1733019048865,-917.94,0.00025753,3]
[343904522,1733019048876,-500.0,0.00025753,3]
[343904523,1733019048888,-500.0,0.00025753,3]
[343904524,1733019048899,-500.0,0.00025753,3]
[343904525,1733019048912,-500.0,0.00025753,3]
[343904526,1733019048923,-500.0,0.00025753,3]
[343904527,1733019048934,-500.0,0.00025753,3]
[343904528,1733019048945,-500.0,0.00025753,3]
[343904529,1733019048956,-500.0,0.00025753,3]
[343904530,1733019048966,-515.22723758,0.00025753,3]
[343904531,1733019048977,-500.0,0.00025753,3]
[343904532,1733019048988,-500.0,0.00025753,3]
[343904533,1733019048999,-1287.83160676,0.00025753,3]
[343904534,1733019049087,-90.14839324,0.00025753,3]
[343904535,1733019049097,-1000.0,0.00025753,2]
[343904536,1733019049107,-500.0,0.00025753,3]
[343904537,1733019049117,-164.49959306,0.00025753,2]
[343904538,1733019049127,-500.0,0.00025753,3]
[343904539,1733019049138,-1292.72,0.00025753,3]
[343904540,1733019049148,-500.0,0.00025753,3]
[343904541,1733019049158,-702.34986142,0.00025753,3]
[343904542,1733019049171,-611.56013858,0.00025753,3]
[343904543,1733019049182,-500.0,0.00025753,3]
[343904544,1733019049192,-91.70398586,0.00025753,3]
[343904545,1733019049205,-408.29601414,0.00025753,3]
[343904546,1733019049215,-500.0,0.00025753,3]
[343904547,1733019049226,-1140.13,0.00025753,3]
[343904548,1733019049237,-500.0,0.00025753,3]
[343904549,1733019049247,-506.17830509,0.00025753,3]
[343904550,1733019049256,-151.62744155,0.00025957,2]
[343904551,1733019049267,-151.0,0.00026,15]
[343904552,1733019049279,-500.0,0.00026027,3]
[343904553,1733019049288,-500.0,0.00026027,3]
[343904554,1733019049297,-525.70568246,0.00026027,3]
[343904555,1733019049305,-295.28972792,0.00026027,3]
[343904556,1733019049315,-500.0,0.00026027,3]
[343904557,1733019049324,-270.314986,0.00026027,7]
[343904558,1733019049334,-500.0,0.00026027,3]
[343904559,1733019049344,-506.48831828,0.00026027,3]
[343904560,1733019049354,-500.0,0.00026027,3]
[343904561,1733019049364,-500.0,0.00026027,3]
[343904562,1733019049374,-693.59464259,0.00026027,3]
[343904563,1733019049400,-136.03535741,0.00026027,3]
[343904564,1733019049410,-500.0,0.00026027,3]
[343904565,1733019049419,-500.0,0.00026027,3]
[343904566,1733019049429,-500.0,0.00026027,3]
[343904567,1733019049439,-544.49,0.00026027,3]
[343904568,1733019049449,-641.96,0.00026027,3]
[343904569,1733019049459,-500.0,0.00026027,3]
[343904570,1733019049469,-500.0,0.00026027,3]
[343904571,1733019049479,-500.0,0.00026027,3]
[343904572,1733019049489,-500.0,0.00026027,3]
[343904573,1733019049498,-151.0,0.00026027,7]
[343904574,1733019049508,-151.0,0.00026027,7]
[343904575,1733019049519,-500.0,0.00026027,3]
[343904576,1733019049529,-235.245473,0.00026027,7]
[343904577,1733019049539,-500.0,0.00026027,3]
[343904578,1733019049549,-500.0,0.00026027,3]
[343904579,1733019049559,-599.0,0.00026027,3]
[343904580,1733019049570,-507.48882834,0.00026027,3]
[343904581,1733019049581,-500.0,0.00026027,3]
[343904582,1733019049591,-664.83,0.00026027,3]
[343904583,1733019049602,-500.0,0.00026027,3]
[343904584,1733019049613,-500.0,0.00026027,3]
[343904585,1733019049623,-500.0,0.00026027,3]
[343904586,1733019049634,-500.0,0.00026027,3]
[343904587,1733019049644,-510.35164983,0.00026027,3]
[343904588,1733019049654,-951.57,0.00026027,3]
[343904589,1733019049663,-716.35,0.00026027,3]
[343904590,1733019049674,-500.0,0.00026027,3]
[343904591,1733019049684,-500.0,0.00026027,3]
[343904592,1733019049694,-917.94,0.00026027,3]
[343904593,1733019049704,-500.0,0.00026027,3]